DEPARTMENT,ENTITY,DOCUMENT DATE,VENDOR NAME,EXPENSE TYPE,EXPENSE AREA,TRANSACTION NUMBER,AMOUNT,TRANSACTION DESCRIPTION
DEPARTMENT OF HEALTH,SOUTH CENTRAL AMBULANCE SERVICE NHS FOUNDATION TRUST,11/03/2022,WEST OXFORDSHIRE D.C.                                            ,RENTS,"FINANCE, ESTATES AND PROCUREMENT",1854869,"105,720.00",RENT AND SERVICE CHARGE NORTH
DEPARTMENT OF HEALTH,SOUTH CENTRAL AMBULANCE SERVICE NHS FOUNDATION TRUST,12/06/2022,ELITE EVENT MEDICAL SERVICES LTD                                 ,PRIVATE AMBULANCE PROVIDERS,OPERATIONS,1856208,"56,843.56",PP HOURS
DEPARTMENT OF HEALTH,SOUTH CENTRAL AMBULANCE SERVICE NHS FOUNDATION TRUST,19/06/2022,ELITE EVENT MEDICAL SERVICES LTD                                 ,PRIVATE AMBULANCE PROVIDERS,OPERATIONS,1856209,"50,740.10",PP HOURS
DEPARTMENT OF HEALTH,SOUTH CENTRAL AMBULANCE SERVICE NHS FOUNDATION TRUST,26/06/2022,ELITE EVENT MEDICAL SERVICES LTD                                 ,PRIVATE AMBULANCE PROVIDERS,OPERATIONS,1856210,"56,166.22",PP HOURS
DEPARTMENT OF HEALTH,SOUTH CENTRAL AMBULANCE SERVICE NHS FOUNDATION TRUST,19/06/2022,MEDRESCUE GROUP                                                  ,PRIVATE AMBULANCE PROVIDERS,OPERATIONS,1856218,"27,848.52",PP HOURS
DEPARTMENT OF HEALTH,SOUTH CENTRAL AMBULANCE SERVICE NHS FOUNDATION TRUST,26/06/2022,MEDRESCUE GROUP                                                  ,PRIVATE AMBULANCE PROVIDERS,OPERATIONS,1856219,"33,040.26",PP HOURS
DEPARTMENT OF HEALTH,SOUTH CENTRAL AMBULANCE SERVICE NHS FOUNDATION TRUST,12/06/2022,PHOENIX RESPONSE SERVICES LTD                                    ,PRIVATE AMBULANCE PROVIDERS,OPERATIONS,1856221,"40,559.92",PP HOURS
DEPARTMENT OF HEALTH,SOUTH CENTRAL AMBULANCE SERVICE NHS FOUNDATION TRUST,19/06/2022,PHOENIX RESPONSE SERVICES LTD                                    ,PRIVATE AMBULANCE PROVIDERS,OPERATIONS,1856222,"36,103.79",PP HOURS
DEPARTMENT OF HEALTH,SOUTH CENTRAL AMBULANCE SERVICE NHS FOUNDATION TRUST,26/06/2022,PHOENIX RESPONSE SERVICES LTD                                    ,PRIVATE AMBULANCE PROVIDERS,OPERATIONS,1856223,"41,021.77",PP HOURS
DEPARTMENT OF HEALTH,SOUTH CENTRAL AMBULANCE SERVICE NHS FOUNDATION TRUST,12/06/2022,POLARIS MEDICAL SERVICES LTD                                     ,PRIVATE AMBULANCE PROVIDERS,OPERATIONS,1856230,"137,463.08",PP HOURS
DEPARTMENT OF HEALTH,SOUTH CENTRAL AMBULANCE SERVICE NHS FOUNDATION TRUST,19/06/2022,POLARIS MEDICAL SERVICES LTD                                     ,PRIVATE AMBULANCE PROVIDERS,OPERATIONS,1856231,"125,168.86",PP HOURS
DEPARTMENT OF HEALTH,SOUTH CENTRAL AMBULANCE SERVICE NHS FOUNDATION TRUST,26/06/2022,POLARIS MEDICAL SERVICES LTD                                     ,PRIVATE AMBULANCE PROVIDERS,OPERATIONS,1856232,"128,631.96",PP HOURS
DEPARTMENT OF HEALTH,SOUTH CENTRAL AMBULANCE SERVICE NHS FOUNDATION TRUST,26/06/2022,RAPID RESPONSE MEDICAL SERVICES LTD                              ,PRIVATE AMBULANCE PROVIDERS,OPERATIONS,1856235,"36,557.48",PP HOURS
DEPARTMENT OF HEALTH,SOUTH CENTRAL AMBULANCE SERVICE NHS FOUNDATION TRUST,23/06/2022,PHL - PARTNERING HEALTH LTD                                      ,TEMPS CLINICAL,OPERATIONS,1856297,"552,724.00",URGENT CARE SUB-CONTRACT
DEPARTMENT OF HEALTH,SOUTH CENTRAL AMBULANCE SERVICE NHS FOUNDATION TRUST,01/07/2022,PHL - PARTNERING HEALTH LTD                                      ,TEMPS CLINICAL,OPERATIONS,1856302,"34,566.00",PAEDIATRIC DESK      
DEPARTMENT OF HEALTH,SOUTH CENTRAL AMBULANCE SERVICE NHS FOUNDATION TRUST,30/06/2022,QUAYSTONE PROJECTS LTD                                           ,BUILDING WORKS,"FINANCE, ESTATES AND PROCUREMENT",1856392,"80,031.14",BUILDING WORKS 
DEPARTMENT OF HEALTH,SOUTH CENTRAL AMBULANCE SERVICE NHS FOUNDATION TRUST,30/06/2022,INNER CIRCLE CONSULTING LTD                                      ,EXTERNAL CONSULTANCY,"FINANCE, ESTATES AND PROCUREMENT",1856926,"30,000.00",ESTATES STRATEGY
DEPARTMENT OF HEALTH,SOUTH CENTRAL AMBULANCE SERVICE NHS FOUNDATION TRUST,20/06/2022,FRIMLEY PRIMARY CARE SERVICE                                     ,TEMPS CLINICAL,OPERATIONS,1856939,"641,625.00",URGENT CARE SUB-CONTRACT
DEPARTMENT OF HEALTH,SOUTH CENTRAL AMBULANCE SERVICE NHS FOUNDATION TRUST,01/06/2022,DNA UK PROPERTIES LIMITED                                        ,RENTS,"FINANCE, ESTATES AND PROCUREMENT",1856941,"31,910.39",RENT MILTON KEYNES 111
DEPARTMENT OF HEALTH,SOUTH CENTRAL AMBULANCE SERVICE NHS FOUNDATION TRUST,31/05/2022,GREEN METRO CARS READING LTD                                     ,TAXI HIRE - PTS,NON EMERGENCY SERVICES,1856997,"42,515.88",PP HOURS
DEPARTMENT OF HEALTH,SOUTH CENTRAL AMBULANCE SERVICE NHS FOUNDATION TRUST,08/06/2022,J.TOMLINSON - INTEGRATED BUILDING SOLUTIONS                      ,BUILDING MAINTENANCE CONT,"FINANCE, ESTATES AND PROCUREMENT",1857070,"31,990.46",BUILDING MAINTENANCE CONTRACT
DEPARTMENT OF HEALTH,SOUTH CENTRAL AMBULANCE SERVICE NHS FOUNDATION TRUST,01/06/2022,TP HEALTH LTD                                                    ,OCCUP HEALTH NON NHS,HUMAN RESOURCES (HR),1857093,"57,123.10",OCCUPATIONAL HEALTH CONTRACT
DEPARTMENT OF HEALTH,SOUTH CENTRAL AMBULANCE SERVICE NHS FOUNDATION TRUST,23/06/2022,ADVANCED                                                         ,IT,ICT,1857902,"220,201.74",SOFTWARE AND MAINTENANCE
DEPARTMENT OF HEALTH,SOUTH CENTRAL AMBULANCE SERVICE NHS FOUNDATION TRUST,04/07/2022,CHG - MERIDIAN UK LTD                                            ,IT,OPERATIONS,1857913,"68,845.87",HARDWARE LEASE
DEPARTMENT OF HEALTH,SOUTH CENTRAL AMBULANCE SERVICE NHS FOUNDATION TRUST,23/06/2022,ADVANCED                                                         ,IT,OPERATIONS,1857919,"25,448.11",SOFTWARE AND MAINTENANCE
DEPARTMENT OF HEALTH,SOUTH CENTRAL AMBULANCE SERVICE NHS FOUNDATION TRUST,10/07/2022,ALLSTAR FUEL CARD SERVICES- DD ONLY                              ,DIESEL,OPERATIONS,1858199,"141,129.28",FUEL
DEPARTMENT OF HEALTH,SOUTH CENTRAL AMBULANCE SERVICE NHS FOUNDATION TRUST,09/06/2022,QUAYSTONE PROJECTS LTD                                           ,BUILDING WORKS,"FINANCE, ESTATES AND PROCUREMENT",1858298,"93,763.85",BUILDING WORKS 
DEPARTMENT OF HEALTH,SOUTH CENTRAL AMBULANCE SERVICE NHS FOUNDATION TRUST,22/06/2022,F.A.S.T. AMBULANCE SERVICE LTD                                   ,PTS PRIVATE PROVIDERS,NON EMERGENCY SERVICES,1858711,"36,362.81",PP HOURS
DEPARTMENT OF HEALTH,SOUTH CENTRAL AMBULANCE SERVICE NHS FOUNDATION TRUST,28/06/2022,F.A.S.T. AMBULANCE SERVICE LTD                                   ,PTS PRIVATE PROVIDERS,NON EMERGENCY SERVICES,1858712,"36,014.99",PP HOURS
DEPARTMENT OF HEALTH,SOUTH CENTRAL AMBULANCE SERVICE NHS FOUNDATION TRUST,04/07/2022,F.A.S.T. AMBULANCE SERVICE LTD                                   ,PTS PRIVATE PROVIDERS,NON EMERGENCY SERVICES,1858713,"36,983.67",PP HOURS
DEPARTMENT OF HEALTH,SOUTH CENTRAL AMBULANCE SERVICE NHS FOUNDATION TRUST,19/06/2022,MEDI4 AMBULANCE SERVICES LTD                                     ,PTS PRIVATE PROVIDERS,NON EMERGENCY SERVICES,1858714,"31,003.80",PP HOURS
DEPARTMENT OF HEALTH,SOUTH CENTRAL AMBULANCE SERVICE NHS FOUNDATION TRUST,26/06/2022,MEDI4 AMBULANCE SERVICES LTD                                     ,PTS PRIVATE PROVIDERS,NON EMERGENCY SERVICES,1858715,"31,202.05",PP HOURS
DEPARTMENT OF HEALTH,SOUTH CENTRAL AMBULANCE SERVICE NHS FOUNDATION TRUST,08/07/2022,J.TOMLINSON - INTEGRATED BUILDING SOLUTIONS                      ,BUILDING MAINTENANCE CONT,"FINANCE, ESTATES AND PROCUREMENT",1859047,"31,990.46",BUILDING MAINTENANCE CONTRACT
DEPARTMENT OF HEALTH,SOUTH CENTRAL AMBULANCE SERVICE NHS FOUNDATION TRUST,05/07/2022,DIFFERENTIA CONSULTING LTD                                       ,IT,OPERATIONS,1859105,"100,698.86",REPORTING SOFTWARE
DEPARTMENT OF HEALTH,SOUTH CENTRAL AMBULANCE SERVICE NHS FOUNDATION TRUST,05/07/2022,NHS RESOLUTION                                                   ,LIABILITIES SCHEME,CORPORATE,1859132,"28,133.00",CLAIMANT COSTS                 
DEPARTMENT OF HEALTH,SOUTH CENTRAL AMBULANCE SERVICE NHS FOUNDATION TRUST,08/07/2022,FERNO (UK) LTD                                                   ,EQUIPMENT,NON EMERGENCY SERVICES,1864434,"28,685.82",AMBULANCE EQUIPMENT
DEPARTMENT OF HEALTH,SOUTH CENTRAL AMBULANCE SERVICE NHS FOUNDATION TRUST,12/07/2022,INTERGRAPH UK LTD                                                ,IT,OPERATIONS,1864495,"34,003.20",SYSTEM DEVELOPEMENT 
DEPARTMENT OF HEALTH,SOUTH CENTRAL AMBULANCE SERVICE NHS FOUNDATION TRUST,10/06/2022,OVINGTON PARK PROPERTIES 2013  LTD                               ,RENTS,"FINANCE, ESTATES AND PROCUREMENT",1865961,"57,000.00",RENT - SEHRC
DEPARTMENT OF HEALTH,SOUTH CENTRAL AMBULANCE SERVICE NHS FOUNDATION TRUST,17/07/2022,ALLSTAR FUEL CARD SERVICES- DD ONLY                              ,DIESEL,OPERATIONS,1866230,"140,023.75",FUEL
DEPARTMENT OF HEALTH,SOUTH CENTRAL AMBULANCE SERVICE NHS FOUNDATION TRUST,05/07/2022,GREEN METRO CARS READING LTD                                     ,TAXI HIRE - PTS,NON EMERGENCY SERVICES,1867722,"41,244.48",PP HOURS
DEPARTMENT OF HEALTH,SOUTH CENTRAL AMBULANCE SERVICE NHS FOUNDATION TRUST,20/06/2022,STREAMLINE (KENT) LTD                                            ,PTS PRIVATE PROVIDERS,NON EMERGENCY SERVICES,1867767,"39,191.32",PP HOURS
DEPARTMENT OF HEALTH,SOUTH CENTRAL AMBULANCE SERVICE NHS FOUNDATION TRUST,27/06/2022,STREAMLINE (KENT) LTD                                            ,PTS PRIVATE PROVIDERS,NON EMERGENCY SERVICES,1867770,"41,507.64",PP HOURS
DEPARTMENT OF HEALTH,SOUTH CENTRAL AMBULANCE SERVICE NHS FOUNDATION TRUST,04/07/2022,STREAMLINE (KENT) LTD                                            ,PTS PRIVATE PROVIDERS,NON EMERGENCY SERVICES,1867772,"41,153.72",PP HOURS
DEPARTMENT OF HEALTH,SOUTH CENTRAL AMBULANCE SERVICE NHS FOUNDATION TRUST,30/06/2022,PTS-247 LTD                                                      ,PTS PRIVATE PROVIDERS,NON EMERGENCY SERVICES,1867774,"31,891.01",PP HOURS
DEPARTMENT OF HEALTH,SOUTH CENTRAL AMBULANCE SERVICE NHS FOUNDATION TRUST,06/07/2022,PTS-247 LTD                                                      ,PTS PRIVATE PROVIDERS,NON EMERGENCY SERVICES,1867775,"65,063.15",PP HOURS
DEPARTMENT OF HEALTH,SOUTH CENTRAL AMBULANCE SERVICE NHS FOUNDATION TRUST,04/07/2022,ELITE MEDICAL AND AMBULANCE SERVICE LTD                          ,PTS PRIVATE PROVIDERS,NON EMERGENCY SERVICES,1867776,"44,222.18",PP HOURS
DEPARTMENT OF HEALTH,SOUTH CENTRAL AMBULANCE SERVICE NHS FOUNDATION TRUST,14/07/2022,BERKSHIRE HEALTHCARE NHS FOUNDATION TRUST                        ,TEMPS CLINICAL,OPERATIONS,1867780,"235,295.49",GP COVER
DEPARTMENT OF HEALTH,SOUTH CENTRAL AMBULANCE SERVICE NHS FOUNDATION TRUST,27/06/2022,ELITE MEDICAL AND AMBULANCE SERVICE LTD                          ,PTS PRIVATE PROVIDERS,NON EMERGENCY SERVICES,1867781,"44,874.53",PP HOURS
DEPARTMENT OF HEALTH,SOUTH CENTRAL AMBULANCE SERVICE NHS FOUNDATION TRUST,20/07/2022,NATIONAL WESTMINSTER BANK -DIRECT DEBIT                          ,CARD EXPENSES,CORPORATE,1867899,"25,056.60",PURCHASE CARD PAYMENTS
DEPARTMENT OF HEALTH,SOUTH CENTRAL AMBULANCE SERVICE NHS FOUNDATION TRUST,21/07/2022,ALLSTAR FUEL CARD SERVICES- DD ONLY                              ,DIESEL,OPERATIONS,1868547,"135,998.71",FUEL
DEPARTMENT OF HEALTH,SOUTH CENTRAL AMBULANCE SERVICE NHS FOUNDATION TRUST,11/07/2022,CAMERON COMMUNICATIONS LTD                                       ,EQUIPMENT,CLINICAL SERVICES,1868576,"63,900.00",SIMULATION PROJECT
DEPARTMENT OF HEALTH,SOUTH CENTRAL AMBULANCE SERVICE NHS FOUNDATION TRUST,15/07/2022,NHS RESOLUTION                                                   ,INSURANCE PREMIUM,CORPORATE AFFAIRS,1868601,"247,386.50","2022/23 NHSLA LTPS, CNST & PES "
DEPARTMENT OF HEALTH,SOUTH CENTRAL AMBULANCE SERVICE NHS FOUNDATION TRUST,06/07/2022,SOUTH CENTRAL FLEET SERVICES LTD                                 ,FLEET SERVICES,OPERATIONS,1868616,"144,180.00",VEHICLE LEASE COSTS
DEPARTMENT OF HEALTH,SOUTH CENTRAL AMBULANCE SERVICE NHS FOUNDATION TRUST,06/07/2022,SOUTH CENTRAL FLEET SERVICES LTD                                 ,FLEET SERVICES,OPERATIONS,1868617,"222,180.00",VEHICLE LEASE COSTS
DEPARTMENT OF HEALTH,SOUTH CENTRAL AMBULANCE SERVICE NHS FOUNDATION TRUST,06/07/2022,SOUTH CENTRAL FLEET SERVICES LTD                                 ,FLEET SERVICES,OPERATIONS,1868618,"359,452.29",VEHICLE LEASE COSTS
DEPARTMENT OF HEALTH,SOUTH CENTRAL AMBULANCE SERVICE NHS FOUNDATION TRUST,06/07/2022,SOUTH CENTRAL FLEET SERVICES LTD                                 ,FLEET SERVICES,OPERATIONS,1868619,"43,937.74",VEHICLE LEASE COSTS
DEPARTMENT OF HEALTH,SOUTH CENTRAL AMBULANCE SERVICE NHS FOUNDATION TRUST,30/06/2022,ELITE EVENT MEDICAL SERVICES LTD                                 ,PRIVATE AMBULANCE PROVIDERS,OPERATIONS,1868658,"43,445.86",PP HOURS
DEPARTMENT OF HEALTH,SOUTH CENTRAL AMBULANCE SERVICE NHS FOUNDATION TRUST,30/06/2022,PHOENIX RESPONSE SERVICES LTD                                    ,PRIVATE AMBULANCE PROVIDERS,OPERATIONS,1868664,"28,012.14",PP HOURS
DEPARTMENT OF HEALTH,SOUTH CENTRAL AMBULANCE SERVICE NHS FOUNDATION TRUST,30/06/2022,POLARIS MEDICAL SERVICES LTD                                     ,PRIVATE AMBULANCE PROVIDERS,OPERATIONS,1868665,"81,811.92",PP HOURS
DEPARTMENT OF HEALTH,SOUTH CENTRAL AMBULANCE SERVICE NHS FOUNDATION TRUST,01/07/2022,SIEMENS FINANCIAL SERVICES                                       ,VEHICLE LEASING,NON EMERGENCY SERVICES,1868740,"74,356.56",VEHICLE LEASE COSTS
DEPARTMENT OF HEALTH,SOUTH CENTRAL AMBULANCE SERVICE NHS FOUNDATION TRUST,23/06/2022,TRIPLE POINT LEASE PARTNERS                                      ,VEHICLE LEASING,NON EMERGENCY SERVICES,1868741,"279,982.36",VEHICLE LEASE COSTS
DEPARTMENT OF HEALTH,SOUTH CENTRAL AMBULANCE SERVICE NHS FOUNDATION TRUST,13/12/2021,OXFORD UNIVERSITY HOSPITALS NHS FOUNDATION TRUST                 ,EXTERNAL CONSULTANCY,CLINICAL SERVICES,1868772,"36,148.68",MEDICAL DIRECTOR 
DEPARTMENT OF HEALTH,SOUTH CENTRAL AMBULANCE SERVICE NHS FOUNDATION TRUST,11/07/2022,OXFORD UNIVERSITY HOSPITALS NHS FOUNDATION TRUST                 ,EXTERNAL CONSULTANCY,CLINICAL SERVICES,1868774,"36,485.73",MEDICAL DIRECTOR 
DEPARTMENT OF HEALTH,SOUTH CENTRAL AMBULANCE SERVICE NHS FOUNDATION TRUST,01/07/2022, (WOKING CARS) SA TAXIS LTD                                      ,TAXI HIRE - PTS,NON EMERGENCY SERVICES,1870107,"33,519.96",PP HOURS
DEPARTMENT OF HEALTH,SOUTH CENTRAL AMBULANCE SERVICE NHS FOUNDATION TRUST,01/07/2022,CERTAS ENERGY UK LTD                                             ,FUEL,OPERATIONS,1870123,"33,728.83",FUEL
DEPARTMENT OF HEALTH,SOUTH CENTRAL AMBULANCE SERVICE NHS FOUNDATION TRUST,20/07/2022,VAT LIAISON CONSULTANCY                                          ,VAT ADVICE,"FINANCE, ESTATES AND PROCUREMENT",1870619,"48,775.00",YEAR END VAT REVIEW CHARGES
DEPARTMENT OF HEALTH,SOUTH CENTRAL AMBULANCE SERVICE NHS FOUNDATION TRUST,10/07/2022,ELITE EVENT MEDICAL SERVICES LTD                                 ,PRIVATE AMBULANCE PROVIDERS,OPERATIONS,1870735,"56,631.90",PP HOURS
DEPARTMENT OF HEALTH,SOUTH CENTRAL AMBULANCE SERVICE NHS FOUNDATION TRUST,17/07/2022,ELITE EVENT MEDICAL SERVICES LTD                                 ,PRIVATE AMBULANCE PROVIDERS,OPERATIONS,1870736,"57,835.38",PP HOURS
DEPARTMENT OF HEALTH,SOUTH CENTRAL AMBULANCE SERVICE NHS FOUNDATION TRUST,10/07/2022,MEDRESCUE GROUP                                                  ,PRIVATE AMBULANCE PROVIDERS,OPERATIONS,1870744,"29,211.84",PP HOURS
DEPARTMENT OF HEALTH,SOUTH CENTRAL AMBULANCE SERVICE NHS FOUNDATION TRUST,17/07/2022,MEDRESCUE GROUP                                                  ,PRIVATE AMBULANCE PROVIDERS,OPERATIONS,1870745,"29,478.58",PP HOURS
DEPARTMENT OF HEALTH,SOUTH CENTRAL AMBULANCE SERVICE NHS FOUNDATION TRUST,10/07/2022,PHOENIX RESPONSE SERVICES LTD                                    ,PRIVATE AMBULANCE PROVIDERS,OPERATIONS,1870747,"40,843.24",PP HOURS
DEPARTMENT OF HEALTH,SOUTH CENTRAL AMBULANCE SERVICE NHS FOUNDATION TRUST,17/07/2022,PHOENIX RESPONSE SERVICES LTD                                    ,PRIVATE AMBULANCE PROVIDERS,OPERATIONS,1870748,"42,763.64",PP HOURS
DEPARTMENT OF HEALTH,SOUTH CENTRAL AMBULANCE SERVICE NHS FOUNDATION TRUST,03/07/2022,POLARIS MEDICAL SERVICES LTD                                     ,PRIVATE AMBULANCE PROVIDERS,OPERATIONS,1870749,"46,190.46",PP HOURS
DEPARTMENT OF HEALTH,SOUTH CENTRAL AMBULANCE SERVICE NHS FOUNDATION TRUST,10/07/2022,POLARIS MEDICAL SERVICES LTD                                     ,PRIVATE AMBULANCE PROVIDERS,OPERATIONS,1870750,"139,625.50",PP HOURS
DEPARTMENT OF HEALTH,SOUTH CENTRAL AMBULANCE SERVICE NHS FOUNDATION TRUST,17/07/2022,POLARIS MEDICAL SERVICES LTD                                     ,PRIVATE AMBULANCE PROVIDERS,OPERATIONS,1870751,"133,318.15",PP HOURS
DEPARTMENT OF HEALTH,SOUTH CENTRAL AMBULANCE SERVICE NHS FOUNDATION TRUST,10/07/2022,RAPID RESPONSE MEDICAL SERVICES LTD                              ,PRIVATE AMBULANCE PROVIDERS,OPERATIONS,1870753,"38,678.38",PP HOURS
DEPARTMENT OF HEALTH,SOUTH CENTRAL AMBULANCE SERVICE NHS FOUNDATION TRUST,17/07/2022,RAPID RESPONSE MEDICAL SERVICES LTD                              ,PRIVATE AMBULANCE PROVIDERS,OPERATIONS,1870754,"35,659.12",PP HOURS
DEPARTMENT OF HEALTH,SOUTH CENTRAL AMBULANCE SERVICE NHS FOUNDATION TRUST,10/07/2022,SOUTHERN MEDICAL RESCUE                                          ,PRIVATE AMBULANCE PROVIDERS,OPERATIONS,1870755,"27,780.65",PP HOURS
DEPARTMENT OF HEALTH,SOUTH CENTRAL AMBULANCE SERVICE NHS FOUNDATION TRUST,17/07/2022,SOUTHERN MEDICAL RESCUE                                          ,PRIVATE AMBULANCE PROVIDERS,OPERATIONS,1870756,"25,099.29",PP HOURS
DEPARTMENT OF HEALTH,SOUTH CENTRAL AMBULANCE SERVICE NHS FOUNDATION TRUST,26/07/2022,J.TOMLINSON - INTEGRATED BUILDING SOLUTIONS                      ,BUILDING MAINTENANCE CONT,"FINANCE, ESTATES AND PROCUREMENT",1871385,"25,527.16",BUILDING MAINTENANCE CONTRACT
DEPARTMENT OF HEALTH,SOUTH CENTRAL AMBULANCE SERVICE NHS FOUNDATION TRUST,27/07/2022,ALLSTAR FUEL CARD SERVICES- DD ONLY                              ,DIESEL,OPERATIONS,1872249,"136,711.90",FUEL
DEPARTMENT OF HEALTH,SOUTH CENTRAL AMBULANCE SERVICE NHS FOUNDATION TRUST,30/06/2022,NHS PENSION SCHEME - INJURY BENEFIT                              ,PROVISION FOR INJURY BENEFIT,CORPORATE,1872306,"38,601.31",QUARTERLY INJURY BENEFIT CHARGE
DEPARTMENT OF HEALTH,SOUTH CENTRAL AMBULANCE SERVICE NHS FOUNDATION TRUST,01/07/2022,SOCIETE GENERALE EQUIPMENT FINANCE LTD                           ,VEHICLE LEASING,NON EMERGENCY SERVICES,1872307,"138,144.00",VEHICLE LEASE COSTS
DEPARTMENT OF HEALTH,SOUTH CENTRAL AMBULANCE SERVICE NHS FOUNDATION TRUST,04/11/2021,NORTH EAST AMBULANCE SERVICE NHS FOUNDATION TRUST                ,TEMPS NON-CLINICAL,OPERATIONS,1872325,"30,541.71",HEAD OF OPERATIONS - CVH
DEPARTMENT OF HEALTH,SOUTH CENTRAL AMBULANCE SERVICE NHS FOUNDATION TRUST,23/03/2022,NORTH EAST AMBULANCE SERVICE NHS FOUNDATION TRUST                ,TEMPS NON-CLINICAL,OPERATIONS,1872326,"25,602.06",HEAD OF OPERATIONS - CVH
DEPARTMENT OF HEALTH,SOUTH CENTRAL AMBULANCE SERVICE NHS FOUNDATION TRUST,23/03/2022,NORTH EAST AMBULANCE SERVICE NHS FOUNDATION TRUST                ,TEMPS NON-CLINICAL,OPERATIONS,1872327,"32,440.54",HEAD OF OPERATIONS - CVH
DEPARTMENT OF HEALTH,SOUTH CENTRAL AMBULANCE SERVICE NHS FOUNDATION TRUST,22/07/2022,QUAYSTONE PROJECTS LTD                                           ,BUILDING WORKS,"FINANCE, ESTATES AND PROCUREMENT",1872413,"72,625.91",BUILDING WORKS 
DEPARTMENT OF HEALTH,SOUTH CENTRAL AMBULANCE SERVICE NHS FOUNDATION TRUST,11/07/2022,F.A.S.T. AMBULANCE SERVICE LTD                                   ,PTS PRIVATE PROVIDERS,NON EMERGENCY SERVICES,1872425,"37,807.44",PP HOURS
DEPARTMENT OF HEALTH,SOUTH CENTRAL AMBULANCE SERVICE NHS FOUNDATION TRUST,19/07/2022,F.A.S.T. AMBULANCE SERVICE LTD                                   ,PTS PRIVATE PROVIDERS,NON EMERGENCY SERVICES,1872426,"37,295.69",PP HOURS
DEPARTMENT OF HEALTH,SOUTH CENTRAL AMBULANCE SERVICE NHS FOUNDATION TRUST,11/07/2022,STREAMLINE (KENT) LTD                                            ,PTS PRIVATE PROVIDERS,NON EMERGENCY SERVICES,1872427,"40,040.71",PP HOURS
DEPARTMENT OF HEALTH,SOUTH CENTRAL AMBULANCE SERVICE NHS FOUNDATION TRUST,10/07/2022,MEDI4 AMBULANCE SERVICES LTD                                     ,PTS PRIVATE PROVIDERS,NON EMERGENCY SERVICES,1872430,"30,660.61",PP HOURS
DEPARTMENT OF HEALTH,SOUTH CENTRAL AMBULANCE SERVICE NHS FOUNDATION TRUST,24/07/2022,ELITE EVENT MEDICAL SERVICES LTD                                 ,PRIVATE AMBULANCE PROVIDERS,OPERATIONS,1873556,"67,546.98",PP HOURS
DEPARTMENT OF HEALTH,SOUTH CENTRAL AMBULANCE SERVICE NHS FOUNDATION TRUST,24/07/2022,MEDI4 AMBULANCE SERVICES LTD                                     ,PRIVATE AMBULANCE PROVIDERS,OPERATIONS,1873559,"28,451.89",PP HOURS
DEPARTMENT OF HEALTH,SOUTH CENTRAL AMBULANCE SERVICE NHS FOUNDATION TRUST,24/07/2022,MEDRESCUE GROUP                                                  ,PRIVATE AMBULANCE PROVIDERS,OPERATIONS,1873560,"27,470.84",PP HOURS
DEPARTMENT OF HEALTH,SOUTH CENTRAL AMBULANCE SERVICE NHS FOUNDATION TRUST,24/07/2022,PHOENIX RESPONSE SERVICES LTD                                    ,PRIVATE AMBULANCE PROVIDERS,OPERATIONS,1873561,"39,847.99",PP HOURS
DEPARTMENT OF HEALTH,SOUTH CENTRAL AMBULANCE SERVICE NHS FOUNDATION TRUST,24/07/2022,POLARIS MEDICAL SERVICES LTD                                     ,PRIVATE AMBULANCE PROVIDERS,OPERATIONS,1873563,"128,062.19",PP HOURS
DEPARTMENT OF HEALTH,SOUTH CENTRAL AMBULANCE SERVICE NHS FOUNDATION TRUST,24/07/2022,RAPID RESPONSE MEDICAL SERVICES LTD                              ,PRIVATE AMBULANCE PROVIDERS,OPERATIONS,1873564,"32,823.81",PP HOURS
